Cogmind - Beta 14 @@@ ROGUE MODE // 2024.08.09 @ 23:05:37 Player: Jammed Result: Destroyed self with Subdweller Shrapnel Launcher Performance ------------- Evolutions (0) 0 Regions Visited (2) 400 Robots Destroyed (33) 165 Value Destroyed (816) 816 Prototype IDs (0) 0 Alien Tech Used (0) 0 Bonus (0) 0 TOTAL SCORE: 1381 Bonus ------- None Cogmind --------- Core Integrity 0/250 Matter 230/300 Energy 100/100 System Corruption 0% Temperature Cool (0) Movement Rolling (120) Ox1 Location -10/Subcaves Parts ------- > --- POWER (1) -------- Subdweller Power Source > --- PROPULSION (2) --- Subdweller Monowheel Subdweller Monowheel > --- UTILITY (2) ------ Disposable Heat Sink Large Storage Unit > --- WEAPON (2) ------- Battle Rifle Subdweller Shrapnel Launcher > --- INVENTORY (15) --- Subdweller Power Source Light Treads Light Treads Subdweller Monowheel Subdweller Monowheel Subdweller Monowheel Subdweller Optics Subdweller Optics Subdweller Optics Scrap Shield Makeshift Hacking Suite Subdweller Beam Cannon Subdweller Shrapnel Launcher Multitool Peak State ------------ > --- POWER ------------ Subdweller Power Source > --- PROPULSION ------- Subdweller Monowheel Subdweller Monowheel > --- UTILITY ---------- Disposable Heat Sink Large Storage Unit > --- WEAPON ----------- Subdweller Laser Subdweller Beam Cannon > --- INVENTORY -------- Subdweller Power Source Light Treads Light Treads Subdweller Monowheel Subdweller Monowheel Subdweller Monowheel Subdweller Optics Subdweller Optics Subdweller Optics Scrap Shield Makeshift Hacking Suite Subdweller Shrapnel Launcher Subdweller Shrapnel Launcher Multitool [Rating: 16] Favorites ----------- Power Subdweller Power Source Engine Subdweller Power Source Propulsion Subdweller Monowheel Treads Light Treads Leg Aluminum Leg Wheel Subdweller Monowheel Utility Large Storage Unit Device Shield Generator Storage Large Storage Unit Weapon Improved Light Cannon Energy Gun Subdweller Laser Energy Cannon Subdweller Beam Cannon Ballistic Gun Light Assault Rifle Ballistic Cannon Improved Light Cannon Launcher Subdweller Shrapnel Launcher Special Weapon Mining Laser Build | -11 -10 -10 ------- Run | Yrd Mat Sub Slots Evolved . | . . . Power . | . . . Propulsion . | . . . Utility . | . . . Weapon . | . . . Parts Attached 30 | 1 11 18 Power 4 | . 1 3 Engine 4 | . 1 3 Core . | . . . Reactor . | . . . Propulsion 10 | . 3 7 Treads 4 | . 3 1 Leg . | . . . Wheel 6 | . . 6 Hover . | . . . Flight . | . . . Utility 5 | 1 2 2 Device 3 | 1 1 1 Storage 2 | . 1 1 Processor . | . . . Hackware . | . . . Protection . | . . . Artifact . | . . . Weapon 11 | . 5 6 Energy Gun 1 | . . 1 Energy Cannon 1 | . . 1 Ballistic Gun 4 | . 1 3 Ballistic Cannon 3 | . 3 . Launcher 1 | . . 1 Special Weapon 1 | . 1 . Impact Weapon . | . . . Slashing Weapon . | . . . Piercing Weapon . | . . . Special Melee Weapon . | . . . Unidentified Prototypes . | . . . Parts Lost 8 | . 1 7 Power 3 | . . 3 Propulsion 2 | . . 2 Utility 2 | . 1 1 Weapon 1 | . . 1 Highest Loss Streak 2 | . 1 2 To Critical Strikes . | . . . Average Slot Usage (%) 97 | . 96 97 Engine 13 | . 14 12 Treads 11 | . 22 6 Leg 1 | . 5 . Wheel 14 | . . 21 Device 7 | . 10 5 Storage 19 | . 14 21 Energy Gun 4 | . . 7 Energy Cannon 5 | . . 8 Ballistic Gun 7 | . 7 7 Ballistic Cannon 9 | . 20 4 Peak Build Rating 16 | 7 11 16 Average Rating 11 | 6 9 13 On Entrance 8 | 6 7 11 Naked Turns . | . . . Heaviest Build 42 | 13 35 42 Greatest Support 40 | 20 40 40 Greatest Overweight (x) 2 | . . 2 Average Overweight (x) . | . . . Largest Inventory Capacity 15 | 8 15 15 Average Capacity 14 | 8 13 15 Most Carried 15 | 7 15 15 Average Carried 12 | 6 11 13 Final Capacity 15 | 8 15 15 Final Carried 15 | 7 15 15 Class Distribution -------------------- 56% | Mutant 43% | Scavenger-Mutant Dominant Class ---------------- Mutant | -10/Materials Scavenger-Mutant | -10/Subcaves Resources | -11 -10 -10 ----------- Run | Yrd Mat Sub Matter Collected 1056 | 214 493 349 Remotely . | . . . Salvage Created 1035 | 95 405 535 Parts 85 | 4 33 48 Haulers Intercepted 2 | . 2 . Recyclers Shooed . | . . . Parts Field Recycled . | . . . Retrieved Matter . | . . . Parts Self-Destructed 7 | . . 7 Prevented . | . . . Kills | -11 -10 -10 ------- Run | Yrd Mat Sub Combat Hostiles Destroyed 26 | . 12 14 Guns 11 | . 7 4 Cannons 11 | . 5 6 AOE 4 | . . 4 Classes Destroyed 8 | 2 4 2 Tunneler 1 | 1 . . Hauler 2 | . 2 . Recycler 1 | 1 . . Watcher 3 | . 3 . Swarmer 9 | . 5 4 Grunt 7 | . 7 . Cobbler 1 | . . 1 Subdweller 10 | . . 10 Best Kill Streak 5 | 2 5 4 Combat Bots Only 4 | . 3 4 Max Kills in Single Turn 4 | 1 1 4 Gunslinging . | . . . Exploded 4 | . . 4 Melee . | . . . Uniques/NPCs Destroyed . | . . . Combat | -11 -10 -10 -------- Run | Yrd Mat Sub Hostile Shots Fired 126 | . 59 67 Missed 40 | . 17 23 Damage Taken 1500 | . 411 1089 Core 261 | . 64 197 Absorbed by Shields 96 | . 42 54 Core Remaining (%) 100 | 100 . . Volleys Fired 145 | 7 54 84 Largest 2 | 2 2 2 Hottest 140 | 40 100 140 Shots Fired 282 | 14 107 161 Gun 174 | 14 70 90 Cannon 104 | . 36 68 Launcher 3 | . . 3 Special 1 | . 1 . Kinetic 198 | 14 106 78 Thermal 84 | . 1 83 Explosive . | . . . Electromagnetic . | . . . Robot Hit Streak 13 | 5 10 13 Robot Miss Streak 2 | 1 2 2 Penetration Max . | . . . Secondary Targets 2 | . 2 . Max Gunslinging Chain 1 | . 1 . Shots Hit Robots 166 | 10 68 88 Core Hits 62 | 3 26 33 Critical Kills 1 | 1 . . Critical Parts Destroyed 1 | . . 1 Critical Strikes 4 | 1 1 2 Destroy 3 | 1 . 2 Blast 1 | . 1 . Melee Attacks . | . . . Impact . | . . . Slashing . | . . . Piercing . | . . . Sneak Attacks . | . . . Combat Hostiles . | . . . Follow-up Attacks . | . . . Damage Inflicted 2596 | 74 769 1753 Guns 1113 | 74 416 623 Cannons 1210 | . 353 857 Explosions 273 | . . 273 Melee . | . . . Ramming . | . . . Kinetic 1924 | 74 769 1081 Thermal 672 | . . 672 Explosive . | . . . Electromagnetic . | . . . Impact . | . . . Slashing . | . . . Piercing . | . . . Highest Corruption . | . . . Average Corruption . | . . . Corruption Purged . | . . . Corruption Blocked . | . . . Overload Shots . | . . . Overflow Damage 12 | . 12 . Projectiles 12 | . 12 . Explosions . | . . . Melee . | . . . Knockbacks 7 | . 2 5 Impact . | . . . Kinetic 7 | . 2 5 Secondary . | . . . Self-Inflicted Damage 59 | . . 59 Shots 1 | . . 1 Rammed . | . . . Targets Rammed . | . . . Kicked . | . . . Crushed . | . . . Highest Temperature 144 | . 136 144 Average Temperature 31 | . 31 31 Received Heat Transfer 372 | . 172 200 Siege Activations . | . . . Robots Corrupted . | . . . Combat Hostiles . | . . . Parts Fried . | . . . Impact Corruptions . | . . . Robots Melted . | . . . Combat Hostiles . | . . . Parts Melted 3 | . . 3 Heat Transferred 881 | . . 881 Parts Sabotaged . | . . . Parts Stolen . | . . . Parts Stripped . | . . . Power Chain Reactions . | . . . Alert | -11 -10 -10 ------- Run | Yrd Mat Sub Peak Influence 254 | 10 254 . Initial 6 | . 6 . Average 107 | 6 110 . Maximum Alert Level 1 | . 1 . Low Security (%) 95 | 100 95 . Level 1 4 | . 4 . Level 2 . | . . . Level 3 . | . . . Level 4 . | . . . Level 5 . | . . . High Security . | . . . Max Security . | . . . Squads Dispatched 2 | . 2 . Investigation 1 | . 1 . Extermination . | . . . Reinforcement 1 | . 1 . Assault . | . . . Garrison . | . . . Intercept . | . . . Searches Triggered . | . . . Construction Impeded . | . . . Haulers Reinforced . | . . . Active Scanning Responses . | . . . Cargo Convoy Interrupts . | . . . Stealth | -11 -10 -10 --------- Run | Yrd Mat Sub Distress Signals 2 | . 2 . Communications Jammed . | . . . Distress Signals . | . . . Times Spotted 36 | . 20 16 Peak Tracking Total 6 | . 6 6 Tactical Retreats 2 | . 1 1 Traps | -11 -10 -10 ------- Run | Yrd Mat Sub Traps Triggered 4 | . 1 3 Indirectly . | . . . Trap Hack Attempts . | . . . Triggered . | . . . Disarmed . | . . . Reprogrammed . | . . . Reused . | . . . Traps Extracted . | . . . Installed . | . . . Triggered . | . . . Machines | -11 -10 -10 ---------- Run | Yrd Mat Sub Machines Disabled 4 | . 1 3 Max in Single Turn 3 | . 1 3 Machines Repaired . | . . . Machines Dismantled . | . . . Machines Sabotaged . | . . . Overloaded Fab Kills . | . . . Hacking | -11 -10 -10 --------- Run | Yrd Mat Sub Machines Accessed 10 | . 9 1 Terminals 7 | . 7 . Fabricators . | . . . Repair Stations . | . . . Recycling Units 2 | . 2 . Scanalyzers . | . . . Garrison Access . | . . . Total Hacks 33 | . 29 4 Successful 21 | . 17 4 Failed 11 | . 11 . Catastrophic 1 | . 1 . Database Lockouts 1 | . 1 . Manual 19 | . 19 . Terminals 26 | . 26 . Fabricators . | . . . Repair Stations . | . . . Recycling Units 3 | . 3 . Scanalyzers . | . . . Garrison Access . | . . . Terminal Hacks 15 | . 11 4 Record 4 | . . 4 Part Schematic 1 | . 1 . Robot Analysis 5 | . 5 . Alert Level 1 | . 1 . Locate Traps 2 | . 2 . Security Status 1 | . 1 . Hauler Manifests 1 | . 1 . Fabricator Hacks . | . . . Repair Station Hacks . | . . . Recycling Unit Hacks 2 | . 2 . Report Inventory 2 | . 2 . Scanalyzer . | . . . Garrison Access Hacks . | . . . Unauthorized Hacks 4 | . 4 . Terminals 3 | . 3 . Botnet 3 | . 3 . Fabricators . | . . . Repair Stations . | . . . Recycling Units 1 | . 1 . Tunnel 1 | . 1 . Scanalyzers . | . . . Garrison Access . | . . . Data Cores Recovered . | . . . Used . | . . . Hacking Detections 6 | . 6 . Full Trace Events 1 | . 1 . Feedback Events . | . . . Feedback Blocked . | . . . Robot Schematics Acquired . | . . . Robots Built . | . . . Authchips . | . . . Time . | . . . Total Robot Build Rating . | . . . Part Schematics Acquired 1 | . 1 . Parts Built . | . . . Authchips . | . . . Time . | . . . Total Part Build Rating . | . . . Parts Repaired . | . . . Time . | . . . Parts Recycled . | . . . Recycled Matter . | . . . Retrieved Matter . | . . . Retrieved Components . | . . . Parts Scanalyzed . | . . . Part Schematics Acquired . | . . . Parts Damaged . | . . . Bothacking | -11 -10 -10 ------------ Run | Yrd Mat Sub Used RIF Installer . | . . . Robots Hacked . | . . . Non-combat . | . . . Combat . | . . . Robot Hacks Applied . | . . . Relay Couplers Released . | . . . Fabnet Peak Effective % . | . . . Robots Rewired . | . . . Allies Hacked . | . . . Hacks Repelled . | . . . Allies | -11 -10 -10 -------- Run | Yrd Mat Sub Total Allies . | . . . Largest Group . | . . . Highest-Rated Group . | . . . Highest-Rated Ally . | . . . Total Orders . | . . . Ally Attacks . | . . . Total Damage . | . . . Kills . | . . . Allies Corrupted . | . . . Allies Melted . | . . . Intel | -11 -10 -10 ------- Run | Yrd Mat Sub Robot Analysis Total 5 | . 5 . Derelict Logs Recovered 1 | . . 1 Drone Launches . | . . . Drone Recoveries . | . . . Exploration | -11 -10 -10 ------------- Run | Yrd Mat Sub Turns Passed 4515 | 38 1473 3004 Spaces Moved 2886 | 15 776 2095 Core . | . . . Treads 983 | . 615 368 Legs 176 | 15 161 . Wheels 1727 | . . 1727 Hover . | . . . Flight . | . . . Fastest Speed 110 | 120 120 110 Average Speed 132 | 120 151 124 Slowest Speed 240 | 120 160 240 Overloaded Moves . | . . . Propulsion Burnouts . | . . . Robots Hopped . | . . . Cave-ins Triggered . | . . . Exploration Rate (%) 65 | 2 98 96 Regions Visited 2 Branch Regions 1 Pre-discovered Areas 3 | . 1 2 Known Exits Taken . | . . . Unknown Exits Taken 2 | 1 1 . Scrap Searched . | . . . Spaces Dug 19 | . 1 18 Terrain Destroyed 36 | . 2 34 Melee . | . . . Projectile 3 | . 2 1 AOE 33 | . . 33 Terrain Rammed . | . . . Walls Destroyed . | . . . Machines Disabled . | . . . Actions | -11 -10 -10 --------- Run | Yrd Mat Sub Total 3332 | 23 977 2332 Wait 220 | . 116 104 Move 2884 | 14 775 2095 Hop . | . . . Pick Up 27 | 1 12 14 Fast Attach 14 | 1 5 8 Attach 8 | . 2 6 Detach 1 | . . 1 Swap 8 | . 4 4 Drop 25 | . 9 16 Fire 145 | 7 54 84 Melee . | . . . Ram . | . . . Kick . | . . . Crush . | . . . Escape Stasis . | . . . Rewire . | . . . Trap . | . . . Miscellaneous . | . . . Route ------- -11/Scrapyard -10/Materials (discovered 6 exits: [*Mat x3] / [*Min x2] / *Sub) -10/Subcaves (discovered 3 exits: [*Mat x2] / [*Rec]) History --------- Turn | Location | Event 20 | -11/Scrapyard | Discovered new exit (range 3) 39 | -11/Scrapyard | Entered Materials 308 | -10/Materials | Build established: Mutant 365 | -10/Materials | Discovered new exit (range 15) 571 | -10/Materials | Discovered new exit (range 4) 676 | -10/Materials | Central database locked down 756 | -10/Materials | Discovered new exit (range 15) 898 | -10/Materials | Discovered new exit (range 15) 1285 | -10/Materials | Discovered new exit (range 13) 1488 | -10/Materials | Discovered new exit (range 5) 1512 | -10/Materials | Entered Subcaves 1551 | -10/Subcaves | A swath of the cavern ceiling suddenly collapsed 1815 | -10/Subcaves | Discovered new exit (range 14) 2201 | -10/Subcaves | Learned location of Recycling (-8) 2344 | -10/Subcaves | Learned location of Zion (-6) 2344 | -10/Subcaves | Met a Zionite searching for "candidates" 2644 | -10/Subcaves | Core integrity fell below 50% 2846 | -10/Subcaves | Build established: Scavenger-Mutant 3495 | -10/Subcaves | Visited Clippyterm 3499 | -10/Subcaves | Learned Research security intel 3499 | -10/Subcaves | Learned Factory garrison access intel 3723 | -10/Subcaves | Shifting Twisted Machinery released Sub. Machine Gun 3737 | -10/Subcaves | Shifting Twisted Machinery released Piercing Trap 3807 | -10/Subcaves | Shifting Twisted Machinery released Flamer 3832 | -10/Subcaves | Shifting Twisted Machinery released Sub. Monowheel 3891 | -10/Subcaves | Shifting Twisted Machinery released Battle Rifle 3892 | -10/Subcaves | Shifting Twisted Machinery released Piercing Trap 4079 | -10/Subcaves | Ambushed by Subdwellers from Twisted Machinery 4113 | -10/Subcaves | Discovered new exit (range 4) 4459 | -10/Subcaves | Discovered new exit (range 8) 4461 | -10/Subcaves | Core integrity fell below 20% 4516 | -10/Subcaves | Destroyed self with Subdweller Shrapnel Launcher Last Messages --------------- 04036_ Acquired 10 matter. 04037_ Subatomizers dissect the Sub. Laser. 04079_ YG-QCH(R) emerges from the Twisted Machinery. 04086_ Sub. Laser destroyed. 04088_ Sub. Power Source destroyed. 04090_ YG-QCH(R) destroyed. 04095_ Acquired Battle Rifle. 04097_ Acquired 10 matter. 04099_ Acquired Sub. Power Source. 04101_ BO-5W1(R) destroyed. 04113_ EXIT=FOUND 04177_ Sub. Monowheel shoots sparks and powers down. 04210_ Acquired 9 matter. 04296_ Sub. Power Source shoots sparks and powers down. 04405_ Acquired 5 matter. 04406_ Acquired 2 matter. 04449_ Sub. Beam Cannon shoots sparks and powers down. 04459_ EXIT=FOUND 04461_ S-10 Pest destroyed. 04461_ Machine disabled. Map ----- +----------------------------------------------------+ | #?# #????????????#######????? | | #### #????????????# # # ##???? | | #?## ##### ##?????????#### #?### | | #??##????## ##????????### ### | | #?????????#### ##?#????###" " ### | | ## ###???????????# # ##???# " "### | | ### ######???????# ] #???# ## #### ### | | ## ### ###?????## ##### ^ ^#??####?? | | ### % % ##?????# ##& ## " ##??????# | | #########" "## ####"" ^ #?????## | | ## ##??"% # ##??### ##?????# | | # % #?#" [ #??????##### ##????## | | ###### #### #" %= ?????????# ##????# | | ????## #??# # %% ????????## ##???? | | ???## ### ## =[ ????????# ##### | | ???# ## ####" %?? "#?????### | | ???# ## #??#" =???"####### | | ??## ### ## #?##""" ?????# | | ### ####?###?#;;;;"